fUSD/lending_fUSD_20260601
["ID","MTS","AMOUNT","RATE_DAILY","PERIOD"]
[423628586,1780265437000,-830.37862532,8.401e-05,2]
[423628585,1780265437000,-830.37862532,8.401e-05,2]
[423628587,1780265437000,-830.37862532,8.401e-05,2]
[423628599,1780265437000,-830.37862532,8.401e-05,2]
[423628601,1780265437000,-9333.69948755,8.402e-05,2]
[423628588,1780265437000,-830.37862532,8.401e-05,2]
[423628603,1780265437000,-150.0,8.546e-05,2]
[423628604,1780265437000,-150.0,8.629e-05,2]
[423628619,1780265437000,-300.0,0.0001004,2]
[423628617,1780265437000,-500.0,9.29e-05,2]
[423628615,1780265437000,-2000.0,9.247e-05,2]
[423628616,1780265437000,-18009.96,9.265e-05,2]
[423628607,1780265437000,-150.0,8.878e-05,2]
[423628608,1780265437000,-154.0,8.961e-05,2]
[423628605,1780265437000,-150.0,8.712e-05,2]
[423628618,1780265437000,-257.21,9.648e-05,2]
[423628613,1780265437000,-250.0,9.128e-05,2]
[423628614,1780265437000,-250.0,9.129e-05,2]
[423628606,1780265437000,-150.0,8.795e-05,2]
[423628611,1780265437000,-193.0,9.128e-05,2]
[423628610,1780265437000,-420.0,9.127e-05,2]
[423628602,1780265437000,-150.0,8.463e-05,2]
[423628612,1780265437000,-459.25550537,9.128e-05,2]
[423628609,1780265437000,-255.0,9.127e-05,2]
[423628682,1780265438000,-31212.00742193,0.00012301,2]
[423628678,1780265438000,-150.99,0.00012087,2]
[423628666,1780265438000,-9999.99,0.00012087,2]
[423628669,1780265438000,-521.26,0.00012087,2]
[423628676,1780265438000,-999.99,0.00012087,2]
[423628680,1780265438000,-1852.42,0.00012186,2]
[423628664,1780265438000,-2838.9,0.00012087,2]
[423628684,1780265438000,-476.87,0.00012329,2]
[423628674,1780265438000,-762.71,0.00012087,2]
[423628668,1780265438000,-1197.6,0.00012087,2]
[423628688,1780265438000,-613.13,0.00013215,2]
[423628697,1780265438000,-24208.3,0.00013671,2]
[423628690,1780265438000,-24581.39,0.00013355,2]
[423628694,1780265438000,-438.35285022,0.00013619,2]
[423628692,1780265438000,-613.13,0.00013545,2]
[423628701,1780265438000,-500.0,0.00013698,2]
[423628703,1780265438000,-500.0,0.00013698,2]
[423628695,1780265438000,-31212.00742193,0.00013668,2]
[423628705,1780265438000,-500.0,0.00013698,2]
[423628672,1780265438000,-3017.25,0.00012087,2]
[423628699,1780265438000,-500.0,0.00013698,2]
[423628707,1780265438000,-500.0,0.00013698,2]
[423628718,1780265438000,-500.0,0.00013698,2]
[423628720,1780265438000,-500.0,0.00013698,2]
[423628686,1780265438000,-2000.0,0.00012329,2]
[423628661,1780265438000,-299.99,0.00012087,2]
[423628633,1780265438000,-2133.52,0.00012087,2]
[423628659,1780265438000,-366.74,0.00012087,2]
[423628716,1780265438000,-500.0,0.00013698,2]
[423628622,1780265438000,-2000.0,0.00010274,2]
[423628621,1780265438000,-1218.46975404,0.00010257,2]
[423628625,1780265438000,-150.0,0.00010989,2]
[423628624,1780265438000,-150.0,0.00010989,2]
[423628620,1780265438000,-4925.97,0.00010228,2]
[423628623,1780265438000,-209.56,0.00010378,2]
[423628626,1780265438000,-31212.00742202,0.00011099,2]
[423628627,1780265438000,-31212.00742193,0.00011099,2]
[423628628,1780265438000,-31212.00742193,0.00011099,2]
[423628631,1780265438000,-155.62397118,0.0001147,2]
[423628629,1780265438000,-250.0,0.00011222,2]
[423628630,1780265438000,-2000.0,0.00011301,2]
[423628637,1780265438000,-5603.78,0.00012087,2]
[423628636,1780265438000,-7657.93,0.00012087,2]
[423628634,1780265438000,-1741.43,0.00012087,2]
[423628632,1780265438000,-500.0,0.00011659,2]
[423628635,1780265438000,-3226.94,0.00012087,2]
[423628638,1780265438000,-4999.99,0.00012087,2]
[423628649,1780265438000,-9999.99,0.00012087,2]
[423628651,1780265438000,-123224.19,0.00012087,2]
[423628653,1780265438000,-8823.83,0.00012087,2]
[423628645,1780265438000,-9999.99,0.00012087,2]
[423628655,1780265438000,-2833.58,0.00012087,2]
[423628647,1780265438000,-1490.66,0.00012087,2]
[423628657,1780265438000,-1581.2,0.00012087,2]
[423628726,1780265438000,-500.0,0.00013698,2]
[423628724,1780265438000,-500.0,0.00013698,2]
[423628714,1780265438000,-500.0,0.00013698,2]
[423628788,1780265438000,-500.0,0.00013698,2]
[423628787,1780265438000,-500.0,0.00013698,2]
[423628778,1780265438000,-500.0,0.00013698,2]
[423628789,1780265438000,-500.0,0.00013698,2]
[423628784,1780265438000,-500.0,0.00013698,2]
[423628783,1780265438000,-500.0,0.00013698,2]
[423628785,1780265438000,-500.0,0.00013698,2]
[423628781,1780265438000,-500.0,0.00013698,2]
[423628780,1780265438000,-500.0,0.00013698,2]
[423628786,1780265438000,-500.0,0.00013698,2]
[423628782,1780265438000,-522.12768216,0.00013698,2]
[423628791,1780265438000,-500.0,0.00013698,2]
[423628792,1780265438000,-500.0,0.00013698,2]
[423628801,1780265438000,-500.0,0.00013698,2]
[423628798,1780265438000,-500.0,0.00013698,2]
[423628800,1780265438000,-500.0,0.00013698,2]
[423628794,1780265438000,-500.0,0.00013698,2]
[423628795,1780265438000,-500.0,0.00013698,2]
[423628793,1780265438000,-500.0,0.00013698,2]
[423628799,1780265438000,-500.0,0.00013698,2]
[423628797,1780265438000,-500.0,0.00013698,2]
[423628796,1780265438000,-500.0,0.00013698,2]
[423628802,1780265438000,-254.78741971,0.00013698,2]
[423628803,1780265438000,-500.0,0.00013698,2]
[423628710,1780265438000,-500.0,0.00013698,2]
[423628779,1780265438000,-500.0,0.00013698,2]
[423628777,1780265438000,-500.0,0.00013698,2]
[423628790,1780265438000,-553.36280109,0.00013698,2]
[423628775,1780265438000,-500.0,0.00013698,2]
[423628776,1780265438000,-500.0,0.00013698,2]
[423628712,1780265438000,-500.0,0.00013698,2]
[423628722,1780265438000,-500.0,0.00013698,2]
[423628728,1780265438000,-500.0,0.00013698,2]
[423628730,1780265438000,-500.0,0.00013698,2]
[423628733,1780265438000,-500.0,0.00013698,2]
[423628741,1780265438000,-500.0,0.00013698,2]
[423628735,1780265438000,-500.0,0.00013698,2]
[423628739,1780265438000,-500.0,0.00013698,2]
[423628745,1780265438000,-500.0,0.00013698,2]
[423628737,1780265438000,-500.0,0.00013698,2]
[423628746,1780265438000,-500.0,0.00013698,2]
[423628749,1780265438000,-500.0,0.00013698,2]
[423628743,1780265438000,-500.0,0.00013698,2]
[423628751,1780265438000,-500.0,0.00013698,2]
[423628774,1780265438000,-500.0,0.00013698,2]
[423628770,1780265438000,-500.0,0.00013698,2]
[423628768,1780265438000,-500.0,0.00013698,2]
[423628766,1780265438000,-500.0,0.00013698,2]
[423628764,1780265438000,-500.0,0.00013698,2]
[423628772,1780265438000,-500.0,0.00013698,2]
[423628762,1780265438000,-500.0,0.00013698,2]
[423628757,1780265438000,-500.0,0.00013698,2]
[423628755,1780265438000,-500.0,0.00013698,2]
[423628753,1780265438000,-500.0,0.00013698,2]
[423628760,1780265438000,-521.95095535,0.00013698,2]
[423628845,1780265439000,-45557.0,0.00016685,2]
[423628843,1780265439000,-500.0,0.00016453,2]
[423628844,1780265439000,-4995.0,0.00016653,2]
[423628839,1780265439000,-500.0,0.00016312,2]
[423628842,1780265439000,-450.31,0.00016438,2]
[423628835,1780265439000,-300.0,0.00016,2]
[423628840,1780265439000,-31212.00742193,0.00016401,2]
[423628836,1780265439000,-454.30943566,0.00016,2]
[423628838,1780265439000,-500.0,0.00016312,2]
[423628837,1780265439000,-454.30943566,0.000161,2]
[423628846,1780265439000,-500.0,0.00016702,2]
[423628841,1780265439000,-512.3,0.00016438,2]
[423628848,1780265439000,-500.0,0.00016702,2]
[423628861,1780265439000,-1050.0,0.00018401,2]
[423628858,1780265439000,-31212.00742193,0.00017767,2]
[423628849,1780265439000,-111634.7491497,0.00016703,2]
[423628859,1780265439000,-209.55,0.00017802,2]
[423628850,1780265439000,-257315.8384242,0.00016703,2]
[423628851,1780265439000,-4844.9956311,0.00016703,2]
[423628853,1780265439000,-1414.47,0.00016748,2]
[423628856,1780265439000,-2000.0,0.00017494,7]
[423628852,1780265439000,-168.2,0.00016712,2]
[423628857,1780265439000,-3050.05,0.00017641,2]
[423628854,1780265439000,-9174.47,0.00016753,2]
[423628855,1780265439000,-476.87,0.00016767,2]
[423628871,1780265439000,-150.0,0.00018493,2]
[423628834,1780265439000,-4547.83,0.00015726,2]
[423628847,1780265439000,-500.0,0.00016702,2]
[423628832,1780265439000,-450.31,0.00015068,2]
[423628804,1780265439000,-500.0,0.00013698,2]
[423628831,1780265439000,-1000.0,0.00015067,2]
[423628872,1780265439000,-150.0,0.0001863,2]
[423628809,1780265439000,-500.0,0.00013698,2]
[423628812,1780265439000,-500.0,0.00013698,2]
[423628811,1780265439000,-504.85227868,0.00013698,2]
[423628806,1780265439000,-500.0,0.00013698,2]
[423628805,1780265439000,-500.0,0.00013698,2]
[423628808,1780265439000,-500.0,0.00013698,2]
[423628810,1780265439000,-500.0,0.00013698,2]
[423628807,1780265439000,-500.0,0.00013698,2]
[423628814,1780265439000,-500.0,0.00013698,2]
[423628822,1780265439000,-166.66,0.0001411,2]
[423628821,1780265439000,-250.0,0.00014,2]
[423628813,1780265439000,-500.0,0.00013698,2]
[423628815,1780265439000,-500.0,0.00013698,2]
[423628817,1780265439000,-166.66,0.00013699,2]
[423628816,1780265439000,-200.0,0.00013699,2]
[423628818,1780265439000,-166.66,0.00013836,2]
[423628819,1780265439000,-613.13,0.00013875,2]
[423628820,1780265439000,-166.66,0.00013973,2]
[423628823,1780265439000,-200.0,0.00014174,2]
[423628826,1780265439000,-166.66,0.00014384,2]
[423628825,1780265439000,-166.66,0.00014247,2]
[423628827,1780265439000,-613.13,0.00014536,2]
[423628833,1780265439000,-150.0,0.00015441,2]
[423628829,1780265439000,-2118.26,0.00014925,2]
[423628828,1780265439000,-150.0,0.00014916,2]
[423628824,1780265439000,-613.13,0.00014206,2]
[423628830,1780265439000,-31212.00742193,0.00015034,2]
[423628860,1780265439000,-350.0,0.00018,2]
[423628866,1780265439000,-150.0,0.00018493,2]
[423628864,1780265439000,-150.0,0.00018493,2]
[423628894,1780265439000,-150.0,0.00018767,2]
[423628898,1780265439000,-150.0,0.00019007,2]
[423628899,1780265439000,-150.0,0.00019041,2]
[423628905,1780265439000,-150.0,0.00019315,4]
[423628906,1780265439000,-150.0,0.00019315,4]
[423628900,1780265439000,-150.0,0.0001911,2]
[423628907,1780265439000,-21390.45,0.00019339,2]
[423628901,1780265439000,-31212.00742193,0.00019134,2]
[423628903,1780265439000,-150.0,0.00019178,4]
[423628904,1780265439000,-500.0,0.00019257,2]
[423628902,1780265439000,-150.0,0.00019178,4]
[423628909,1780265439000,-150.0,0.00019452,4]
[423628908,1780265439000,-1898.41,0.00019434,2]
[423628910,1780265439000,-196.6,0.000195,7]
[423628911,1780265439000,-150.0,0.00019521,2]
[423628912,1780265439000,-150.0,0.00019521,4]
[423628915,1780265439000,-208.86,0.00019606,2]
[423628914,1780265439000,-150.0,0.000196,2]
[423628916,1780265439000,-150.0,0.00019726,4]
[423628919,1780265439000,-2148.51,0.00019817,2]
[423628913,1780265439000,-150.0,0.00019589,4]
[423628924,1780265439000,-151.0,0.00019897,2]
[423628917,1780265439000,-150.0,0.00019726,4]
[423628923,1780265439000,-150.0,0.00019863,4]
[423628921,1780265439000,-4310.84,0.0001985,2]
[423628918,1780265439000,-1554.63042781,0.000198,2]
[423628862,1780265439000,-450.0,0.00018401,7]
[423628893,1780265439000,-151.0,0.000187,2]
[423628896,1780265439000,-150.0,0.00018904,2]
[423628920,1780265439000,-2155.42,0.0001985,2]
[423628892,1780265439000,-151.0,0.000187,2]
[423628895,1780265439000,-150.0,0.00018904,2]
[423628922,1780265439000,-150.0,0.00019863,4]
[423628870,1780265439000,-150.0,0.00018493,2]
[423628867,1780265439000,-150.60855758,0.00018493,2]
[423628869,1780265439000,-150.29016843,0.00018493,2]
[423628868,1780265439000,-150.0,0.00018493,2]
[423628863,1780265439000,-512.3,0.0001841,2]
[423628865,1780265439000,-150.0,0.00018493,2]
[423628874,1780265439000,-151.0,0.000187,2]
[423628885,1780265439000,-151.0,0.000187,2]
[423628873,1780265439000,-150.0,0.00018699,2]
[423628880,1780265439000,-151.0,0.000187,2]
[423628878,1780265439000,-151.0,0.000187,2]
[423628884,1780265439000,-151.0,0.000187,2]
[423628876,1780265439000,-151.0,0.000187,2]
[423628891,1780265439000,-151.0,0.000187,2]
[423628881,1780265439000,-151.0,0.000187,2]
[423628889,1780265439000,-151.0,0.000187,2]
[423628887,1780265439000,-151.0,0.000187,2]
[423628890,1780265439000,-151.0,0.000187,2]
[423628886,1780265439000,-151.0,0.000187,2]
[423628888,1780265439000,-151.0,0.000187,2]
[423628897,1780265439000,-1842.48838443,0.00019,2]
[423628879,1780265439000,-151.0,0.000187,2]
[423628883,1780265439000,-151.0,0.000187,2]
[423628875,1780265439000,-151.0,0.000187,2]
[423628877,1780265439000,-151.0,0.000187,2]
[423628882,1780265439000,-151.0,0.000187,2]
[423628964,1780265440000,-500.0,0.00020563,2]
[423628965,1780265440000,-500.0,0.00020563,2]
[423628974,1780265440000,-500.0,0.0002095,2]
[423628959,1780265440000,-500.0,0.00020563,2]
[423628957,1780265440000,-161.8469673,0.00020563,2]
[423628958,1780265440000,-500.0,0.00020563,2]
[423628954,1780265440000,-183.95998079,0.00020548,4]
[423628956,1780265440000,-150.0,0.00020563,2]
[423628955,1780265440000,-150.0,0.00020548,4]
[423628967,1780265440000,-500.0,0.00020563,2]
[423628960,1780265440000,-500.0,0.00020563,2]
[423628963,1780265440000,-500.0,0.00020563,2]
[423628978,1780265440000,-192.0,0.00021,2]
[423628970,1780265440000,-500.0,0.00020563,2]
[423628968,1780265440000,-500.0,0.00020563,2]
[423628973,1780265440000,-902.7,0.000206,2]
[423628969,1780265440000,-500.0,0.00020563,2]
[423628972,1780265440000,-1500000.0,0.00020564,2]
[423628971,1780265440000,-186.64364503,0.00020563,2]
[423628975,1780265440000,-500.0,0.0002095,2]
[423628979,1780265440000,-215.0,0.00021,2]
[423628976,1780265440000,-500.0,0.0002095,2]
[423628977,1780265440000,-500.0,0.0002095,2]
[423628980,1780265440000,-350.0,0.00021,2]
[423628953,1780265440000,-221.00621176,0.00020548,4]
[423628966,1780265440000,-500.0,0.00020563,2]
[423628962,1780265440000,-500.0,0.00020563,2]
[423628941,1780265440000,-150.0,0.00020034,4]
[423628952,1780265440000,-150.0,0.00020548,4]
[423628981,1780265440000,-152.0,0.00021,2]
[423628937,1780265440000,-387.0,0.0002,2]
[423628925,1780265440000,-2500000.0,0.000199,2]
[423628928,1780265440000,-150.0,0.0002,4]
[423628927,1780265440000,-150.0,0.00019932,4]
[423628926,1780265440000,-196.72193408,0.000199,2]
[423628938,1780265440000,-507.0,0.0002,2]
[423628935,1780265440000,-766.0,0.0002,2]
[423628934,1780265440000,-156.0,0.0002,2]
[423628936,1780265440000,-400.0,0.0002,2]
[423628930,1780265440000,-215.0,0.0002,2]
[423628929,1780265440000,-192.0,0.0002,2]
[423628931,1780265440000,-350.0,0.0002,2]
[423628933,1780265440000,-283.0,0.0002,2]
[423628932,1780265440000,-152.0,0.0002,2]
[423628939,1780265440000,-4648.3,0.0002,2]
[423628942,1780265440000,-150.0,0.00020137,4]
[423628943,1780265440000,-150.0,0.00020137,4]
[423628944,1780265440000,-150.0,0.00020274,4]
[423628950,1780265440000,-150.0,0.00020548,4]
[423628940,1780265440000,-265.0,0.0002,2]
[423628951,1780265440000,-150.0,0.00020548,4]
[423628948,1780265440000,-150.0,0.00020411,4]
[423628945,1780265440000,-150.0,0.00020342,4]
[423628947,1780265440000,-512.3,0.00020381,2]
[423628946,1780265440000,-2702.65,0.00020348,2]
[423628949,1780265440000,-31212.00742193,0.000205,2]
[423628961,1780265440000,-500.0,0.00020563,2]
[423628983,1780265440000,-766.0,0.00021,2]
[423628988,1780265440000,-1254.59,0.00021273,2]
[423628982,1780265440000,-283.0,0.00021,2]
[423629026,1780265440000,-1254.59,0.00022691,2]
[423629028,1780265440000,-2198.5,0.00022881,2]
[423629031,1780265440000,-192.0,0.00023,2]
[423629032,1780265440000,-215.0,0.00023,2]
[423629033,1780265440000,-350.0,0.00023,2]
[423629037,1780265440000,-387.0,0.00023,2]
[423629039,1780265440000,-265.0,0.00023,2]
[423629040,1780265440000,-2198.5,0.00023005,2]
[423629044,1780265440000,-243.896559,0.00023293,14]
[423629041,1780265440000,-902.7,0.000231,7]
[423629042,1780265440000,-2198.5,0.00023129,2]
[423629038,1780265440000,-507.0,0.00023,2]
[423629029,1780265440000,-4493.04,0.00022953,2]
[423629046,1780265440000,-2198.5,0.00023501,2]
[423629047,1780265440000,-500.0,0.00023532,2]
[423629043,1780265440000,-2198.5,0.00023253,2]
[423629049,1780265440000,-2198.5,0.00023625,2]
[423629048,1780265440000,-4648.3,0.00023532,2]
[423629051,1780265440000,-10000.0,0.00023668,2]
[423629053,1780265440000,-151.0,0.00023746,7]
[423629052,1780265440000,-157.06,0.00023688,2]
[423629054,1780265440000,-2198.5,0.00023749,2]
[423629056,1780265440000,-660312.7661232,0.00023768,2]
[423628984,1780265440000,-387.0,0.00021,2]
[423629050,1780265440000,-166.66,0.00023641,2]
[423629057,1780265440000,-2198.5,0.00023873,2]
[423629045,1780265440000,-2198.5,0.00023377,2]
[423629027,1780265440000,-2198.5,0.00022757,2]
[423629055,1780265440000,-500.0,0.00023767,2]
[423629025,1780265440000,-2198.5,0.00022633,2]
[423629030,1780265440000,-1600.0,0.00022958,2]
[423628985,1780265440000,-507.0,0.00021,2]
[423628998,1780265440000,-350.0,0.00022,2]
[423628987,1780265440000,-476.87,0.00021205,2]
[423628991,1780265440000,-4648.3,0.00021766,2]
[423628997,1780265440000,-215.0,0.00022,2]
[423628992,1780265440000,-5000.0,0.00021918,2]
[423628995,1780265440000,-192.0,0.00022,2]
[423628993,1780265440000,-261.01,0.00021918,2]
[423628989,1780265440000,-652.64,0.00021273,2]
[423628990,1780265440000,-905.80281227,0.00021418,2]
[423628994,1780265440000,-280.12314812,0.00021944,2]
[423629000,1780265440000,-152.0,0.00022,2]
[423628986,1780265440000,-265.0,0.00021,2]
[423629005,1780265440000,-766.0,0.00022,2]
[423629002,1780265440000,-283.0,0.00022,2]
[423629036,1780265440000,-766.0,0.00023,2]
[423629035,1780265440000,-283.0,0.00023,2]
[423629021,1780265440000,-2198.5,0.00022385,2]
[423629019,1780265440000,-512.3,0.00022353,2]
[423629034,1780265440000,-152.0,0.00023,2]
[423629011,1780265440000,-507.0,0.00022,2]
[423629007,1780265440000,-450.0,0.00022,2]
[423629013,1780265440000,-218.03,0.00022,2]
[423629023,1780265440000,-2198.5,0.00022509,2]
[423629009,1780265440000,-387.0,0.00022,2]
[423629017,1780265440000,-589.82,0.000223,14]
[423629015,1780265440000,-265.0,0.00022,2]
[423629085,1780265441000,-2198.5,0.00024742,2]
[423629094,1780265441000,-284.0,0.00025,2]
[423629087,1780265441000,-902.7,0.000249,7]
[423629092,1780265441000,-367.0,0.00025,2]
[423629096,1780265441000,-393.0,0.00025,2]
[423629086,1780265441000,-1000.0,0.00024772,2]
[423629093,1780265441000,-155.0,0.00025,2]
[423629088,1780265441000,-218.03,0.00024904,7]
[423629090,1780265441000,-201.0,0.00025,2]
[423629095,1780265441000,-783.0,0.00025,2]
[423629091,1780265441000,-221.0,0.00025,2]
[423629108,1780265441000,-166.66,0.00025982,2]
[423629099,1780265441000,-165.33,0.00025136,2]
[423629098,1780265441000,-269.0,0.00025,2]
[423629107,1780265441000,-196.72193406,0.00025938,20]
[423629100,1780265441000,-166.66,0.00025202,2]
[423629097,1780265441000,-510.0,0.00025,2]
[423629101,1780265441000,-4648.3,0.00025298,7]
[423629105,1780265441000,-758.18,0.00025786,2]
[423629102,1780265441000,-476.87,0.00025644,2]
[423629103,1780265441000,-500.0,0.00025653,2]
[423629104,1780265441000,-652.64,0.00025786,2]
[423629084,1780265441000,-231.54,0.00024658,2]
[423629089,1780265441000,-2000.0,0.00024996,7]
[423629080,1780265441000,-2198.5,0.00024369,2]
[423629070,1780265441000,-500.0,0.00024,2]
[423629075,1780265441000,-2198.5,0.00024121,2]
[423629109,1780265441000,-500.0,0.00026,2]
[423629059,1780265441000,-257315.8384242,0.00023941,2]
[423629058,1780265441000,-111634.7491497,0.00023941,2]
[423629060,1780265441000,-4844.9956311,0.00023941,2]
[423629061,1780265441000,-1000.0,0.00023942,2]
[423629064,1780265441000,-192.0,0.00024,2]
[423629065,1780265441000,-215.0,0.00024,2]
[423629062,1780265441000,-1000.0,0.00023969,2]
[423629063,1780265441000,-2198.5,0.00023997,2]
[423629066,1780265441000,-350.0,0.00024,2]
[423629067,1780265441000,-152.0,0.00024,2]
[423629068,1780265441000,-283.0,0.00024,2]
[423629069,1780265441000,-766.0,0.00024,2]
[423629071,1780265441000,-387.0,0.00024,2]
[423629077,1780265441000,-4933.55,0.00024174,2]
[423629073,1780265441000,-265.0,0.00024,2]
[423629072,1780265441000,-507.0,0.00024,2]
[423629074,1780265441000,-500.0,0.00024027,2]
[423629082,1780265441000,-2198.5,0.00024493,2]
[423629083,1780265441000,-2198.5,0.00024618,2]
[423629076,1780265441000,-758.18,0.00024174,2]
[423629079,1780265441000,-512.3,0.00024324,2]
[423629081,1780265441000,-166.66,0.00024422,2]
[423629078,1780265441000,-2198.5,0.00024245,2]
[423629111,1780265441000,-507.31049268,0.00026122,7]
[423629106,1780265441000,-4933.55,0.00025786,2]
[423629112,1780265441000,-512.3,0.00026296,2]
[423629139,1780265441000,-3639.0,0.00028212,2]
[423629141,1780265441000,-500.0,0.00028264,16]
[423629144,1780265441000,-168.58820977,0.00028387,2]
[423629142,1780265441000,-512.3,0.00028267,2]
[423629143,1780265441000,-171.8993629,0.00028387,2]
[423629146,1780265441000,-153.21480622,0.00028387,2]
[423629145,1780265441000,-163.25130349,0.00028387,2]
[423629147,1780265441000,-175.71074909,0.00028387,2]
[423629149,1780265441000,-179.79097245,0.00028394,2]
[423629148,1780265441000,-164.05772361,0.00028394,2]
[423629151,1780265441000,-270.12294958,0.00028394,2]
[423629150,1780265441000,-154.70467557,0.00028394,2]
[423629154,1780265441000,-161.35566711,0.00028394,2]
[423629152,1780265441000,-156.84350314,0.00028394,2]
[423629153,1780265441000,-187.09850581,0.00028394,2]
[423629157,1780265441000,-281.0895347,0.00028394,2]
[423629156,1780265441000,-260.15294102,0.00028394,2]
[423629159,1780265441000,-154.06848018,0.00028394,2]
[423629160,1780265441000,-185.4332109,0.00028394,2]
[423629158,1780265441000,-193.98409769,0.00028394,2]
[423629163,1780265441000,-166.91214356,0.00028399,2]
[423629162,1780265441000,-161.90372201,0.00028399,2]
[423629110,1780265441000,-550.0,0.00026,2]
[423629140,1780265441000,-6066.0,0.00028212,2]
[423629137,1780265441000,-491.51,0.000282,30]
[423629155,1780265441000,-230.53775102,0.00028394,2]
[423629134,1780265441000,-600.0,0.00028,2]
[423629138,1780265441000,-627.0,0.00028205,3]
[423629113,1780265441000,-500.0,0.00026423,2]
[423629115,1780265441000,-166.66,0.00026763,2]
[423629117,1780265441000,-500.0,0.00026932,2]
[423629114,1780265441000,-500.0,0.00026641,2]
[423629118,1780265441000,-902.7,0.00027,7]
[423629119,1780265441000,-4648.3,0.00027064,7]
[423629120,1780265441000,-627.0,0.00027137,2]
[423629161,1780265441000,-205.31326045,0.00028399,2]
[423629121,1780265441000,-500.0,0.00027216,2]
[423629123,1780265441000,-1500.0,0.00027397,2]
[423629122,1780265441000,-591.86,0.00027397,30]
[423629116,1780265441000,-165.33,0.00026931,2]
[423629136,1780265441000,-500.0,0.00028032,15]
[423629135,1780265441000,-156.70278165,0.00028,10]
[423629133,1780265441000,-218.03,0.00027809,7]
[423629130,1780265441000,-658.0,0.00027448,10]
[423629127,1780265441000,-3347.22,0.000274,14]
[423629129,1780265441000,-500.0,0.0002744,14]
[423629124,1780265441000,-231.54,0.00027397,2]
[423629132,1780265441000,-627.0,0.00027671,2]
[423629126,1780265441000,-268.99,0.000274,7]
[423629128,1780265441000,-701.23,0.000274,7]
[423629125,1780265441000,-300.0,0.00027397,2]
[423629131,1780265441000,-166.66,0.00027543,2]
[423629218,1780265442000,-938.84,0.00028991,2]
[423629200,1780265442000,-219.71,0.00028858,2]
[423629207,1780265442000,-2000.0,0.00028913,2]
[423629217,1780265442000,-170.23434894,0.00028985,2]
[423629208,1780265442000,-1648.72,0.00028913,2]
[423629199,1780265442000,-163.0,0.0002885,3]
[423629194,1780265442000,-586.68,0.0002883,7]
[423629198,1780265442000,-437.21,0.00028839,7]
[423629204,1780265442000,-218.42,0.0002889,7]
[423629203,1780265442000,-219.71,0.00028887,7]
[423629202,1780265442000,-500.0,0.00028873,17]
[423629206,1780265442000,-2000.0,0.00028913,2]
[423629201,1780265442000,-218.42,0.00028861,2]
[423629209,1780265442000,-219.71,0.00028916,30]
[423629222,1780265442000,-432.06,0.00028998,2]
[423629211,1780265442000,-219.71,0.00028945,2]
[423629212,1780265442000,-218.42,0.00028947,2]
[423629215,1780265442000,-219.71,0.00028973,7]
[423629210,1780265442000,-218.42,0.00028918,30]